Workbook

Sheet Foglio1
A1: Tipologia di attrezzatura/bene come da capitolo 3.2 Operazioni ammissibili - D.D.G. n. 1077 del 26/11/2020 - PO FESR -Azione 10.8.1 | B1: Descrizione prodotto | C1: Q | D1: Costo Unitario Stimato Iva comp.al 22% | E1: Costo TOT Iva comp.
A2: A.1 - notebook e tablet dotati di microfono, speaker e web-cam, integrati o off-board (cioè acquistati separatamente e compatibili con il notebook/tablet); | C2: 1 | D2: 2000 | E2: =D2*C2 -> 2000
A3: A.1 - notebook e tablet dotati di microfono, speaker e web-cam, integrati o off-board (cioè acquistati separatamente e compatibili con il notebook/tablet); | C3: 1 | D3: 2000 | E3: =D3*C3 -> 2000
A4: A.1 - notebook e tablet dotati di microfono, speaker e web-cam, integrati o off-board (cioè acquistati separatamente e compatibili con il notebook/tablet); | C4: 1 | D4: 2000 | E4: =D4*C4 -> 2000
A5: A.1 - notebook e tablet dotati di microfono, speaker e web-cam, integrati o off-board (cioè acquistati separatamente e compatibili con il notebook/tablet); | C5: 1 | D5: 2000 | E5: =D5*C5 -> 2000
A6: A.1 - notebook e tablet dotati di microfono, speaker e web-cam, integrati o off-board (cioè acquistati separatamente e compatibili con il notebook/tablet); | C6: 1 | D6: 2000 | E6: =D6*C6 -> 2000
A7: A.1 - notebook e tablet dotati di microfono, speaker e web-cam, integrati o off-board (cioè acquistati separatamente e compatibili con il notebook/tablet); | C7: 1 | D7: 2000 | E7: =D7*C7 -> 2000
A8: A.1 - notebook e tablet dotati di microfono, speaker e web-cam, integrati o off-board (cioè acquistati separatamente e compatibili con il notebook/tablet); | C8: 1 | D8: 2000 | E8: =D8*C8 -> 2000
A9: A.1 - notebook e tablet dotati di microfono, speaker e web-cam, integrati o off-board (cioè acquistati separatamente e compatibili con il notebook/tablet); | C9: 1 | D9: 2000 | E9: =D9*C9 -> 2000
A10: A.3 - internet key e modem-router 4G/LTE e altri accessori utili all’erogazione/fruizione delle attività formative a distanza; | C10: 1 | D10: 2000 | E10: =D10*C10 -> 2000
A11: A.1 - notebook e tablet dotati di microfono, speaker e web-cam, integrati o off-board (cioè acquistati separatamente e compatibili con il notebook/tablet); | C11: 1 | D11: 2000 | E11: =D11*C11 -> 2000
A12: A.1 - notebook e tablet dotati di microfono, speaker e web-cam, integrati o off-board (cioè acquistati separatamente e compatibili con il notebook/tablet); | C12: 1 | D12: 2000 | E12: =D12*C12 -> 2000
A13: A.1 - notebook e tablet dotati di microfono, speaker e web-cam, integrati o off-board (cioè acquistati separatamente e compatibili con il notebook/tablet); | C13: 1 | D13: 2000 | E13: =D13*C13 -> 2000
A14: A.1 - notebook e tablet dotati di microfono, speaker e web-cam, integrati o off-board (cioè acquistati separatamente e compatibili con il notebook/tablet); | C14: 1 | D14: 2000 | E14: =D14*C14 -> 2000
A15: A.1 - notebook e tablet dotati di microfono, speaker e web-cam, integrati o off-board (cioè acquistati separatamente e compatibili con il notebook/tablet); | C15: 1 | D15: 2000 | E15: =D15*C15 -> 2000
B16: Incidenza di Costo per a) almeno il 92% | D16: Tot. Lordo (IVA comp) | E16: =SUM(E2:E15) -> 28000 | F16: =E16/E40 -> 0.9520571234
D17: ..di cui IVA al 22% | E17: =(E14)-E14/1.22 -> 360.6557377
A18: B. COLLAUDO E PUBBLICITA’ | B18: Indicare se possibile risorsa professionale Interna/esterna alla P.A.attuatrice (oppure in caso di materiale pubblicitario indicare prodotto e costo approssimativo) | C18: H. | D18: Costo Orario Lordo Omnicomprensivo di Oneri fiscali, sociali sia a carico Stato che dipendente. | E18: Costo TOT Iva comp.
A19: B.1- Collaudo: max.2% | C19: 20 | D19: 50 | E19: =D19*C19 -> 1000
A20: B.1- Collaudo: max.2% | C20: 0 | D20: 0 | E20: =D20*C20 -> 0
A21: B.1- Collaudo: max.2% | E21: =D21*C21 -> 0
A22: B.2 – Pubblicità. Max.1% | B22: Adesivi pubblicitari/inventario | C22: 100 | D22: 1.5 | E22: =D22*C22 -> 150
A23: B.2 – Pubblicità. Max.1% | B23: Targa A3 in forex da esterno con loghi | C23: 2 | D23: 30 | E23: =D23*C23 -> 60
A24: B.2 – Pubblicità. Max.1% | C24: 1 | D24: 0 | E24: =D24*C24 -> 0
B25: Incidenza di Costo per b) non oltre il 3% | D25: Tot. Lordo (IVA comp) | E25: =SUM(E19:E24) -> 1210 | F25: =E25/E40 -> 0.04114246855
D26: ..di cui IVA al 22% | E26: =(E16)-E16/1.22 -> 5049.180328
A28: C –Spese Generali Max 5% | B28: Descrivere dettagliatamente | C28: Q | D28: Costo Presunto | E28: Costo TOT Iva comp.
A29: C1. - ritiro e dismissione di RAE | C29: 1 | D29: 200 | E29: =D29*C29 -> 200
A30: C1. - ritiro e dismissione di RAE | E30: =D30*C30 -> 0
A31: C1. - ritiro e dismissione di RAE | E31: =D31*C31 -> 0
A32: C3. altro (descrivere dettagliatamente) | E32: =D32*C32 -> 0
A33: C2. - oneri di conferimento a discarica | E33: =D33*C33 -> 0
A34: C2. - oneri di conferimento a discarica | E34: =D34*C34 -> 0
A35: C3. altro (descrivere dettagliatamente) | E35: =D35*C35 -> 0
D36: Tot. Lordo (IVA comp) | E36: =SUM(E29:E35) -> 200 | F36: =E36/E40 -> 0.006800408024
D37: ..di cui IVA al 22% | E37: =E36-(E36-C291)/1.22 -> 36.06557377
D40: A+B+C | E40: =E36+E25+E16 -> 29410

Sheet Foglio2 (hidden)
A1: A.1 - notebook e tablet dotati di microfono, speaker e web-cam, integrati o off-board (cioè acquistati separatamente e compatibili con il notebook/tablet);
A2: A.2 -software e licenze per la realizzazione e/o l’uso di piattaforme di e-learning, mobilelearning, content- sharing, streaming, video-call di gruppo e web-conference;
A3: A.3 - internet key e modem-router 4G/LTE e altri accessori utili all’erogazione/fruizione delle attività formative a distanza;
A4: A.4 - armadi e carrelli per la custodia dei succitati dispositivi all’interno dell’Istituzione scolastica;
A5: A.5 - realizzazione di cablaggio di rete strutturato e non, all’interno degli edifici scolastici ovvero tra più edifici facenti parte dello stesso istituto scolastico.
A9: B.1- Collaudo: max.2%
A10: B.2 – Pubblicità. Max.1%
A12: C1. - ritiro e dismissione di RAE
A13: C2. - oneri di conferimento a discarica
A14: C3. altro (descrivere dettagliatamente)
